[Event "*** Titled Tuesday Blitz"]
[Site "Chess.com"]
[Date "2020.05.12"]
[Round "5"]
[White "krasavetc"]
[Black "2008king"]
[Result "1/2-1/2"]
[WhiteElo "2295"]
[BlackElo "2087"]
[TimeControl "180+1"]
[EndTime "10:57:52 PDT"]
[Termination "Game drawn - insufficient material"]

1. e4 {[%clk 0:03:00.9]} 1... e5 {[%clk 0:02:54.3]} 2. Nf3 {[%clk 0:02:56.6]}
2... Nc6 {[%clk 0:02:53.1]} 3. Bc4 {[%clk 0:02:54]} 3... Bc5 {[%clk 0:02:52.3]}
4. d4 {[%clk 0:02:44.1]} 4... Bxd4 {[%clk 0:02:49]} 5. c3 {[%clk 0:02:37]} 5...
Bc5 {[%clk 0:02:44.5]} 6. Bxf7+ {[%clk 0:02:24.1]} 6... Kxf7 {[%clk 0:02:41.1]}
7. Qd5+ {[%clk 0:02:20.2]} 7... Kf8 {[%clk 0:02:41.1]} 8. Qxc5+ {[%clk
0:02:21.1]} 8... Qe7 {[%clk 0:02:41.8]} 9. Qxe7+ {[%clk 0:02:10.1]} 9... Kxe7
{[%clk 0:02:39]} 10. O-O {[%clk 0:02:11]} 10... Nf6 {[%clk 0:02:39]} 11. Bg5
{[%clk 0:02:06]} 11... d6 {[%clk 0:02:38.4]} 12. Nbd2 {[%clk 0:01:52.4]} 12...
Bg4 {[%clk 0:02:33.6]} 13. h3 {[%clk 0:01:40.1]} 13... Be6 {[%clk 0:02:31.3]}
14. Rfe1 {[%clk 0:01:32.5]} 14... h6 {[%clk 0:02:30]} 15. Be3 {[%clk 0:01:31.2]}
15... g5 {[%clk 0:02:09]} 16. Nh2 {[%clk 0:01:28.4]} 16... Raf8 {[%clk
0:02:01.9]} 17. g4 {[%clk 0:01:25]} 17... Nd7 {[%clk 0:01:55.5]} 18. b4 {[%clk
0:01:21.1]} 18... Rfg8 {[%clk 0:01:20.1]} 19. Ndf1 {[%clk 0:01:19.2]} 19... h5
{[%clk 0:01:18.4]} 20. Ng3 {[%clk 0:01:18.2]} 20... hxg4 {[%clk 0:01:16.7]} 21.
hxg4 {[%clk 0:01:18.4]} 21... Rh4 {[%clk 0:01:13.6]} 22. Nf5+ {[%clk 0:01:16.6]}
22... Bxf5 {[%clk 0:01:13.1]} 23. gxf5 {[%clk 0:01:17.5]} 23... Nf6 {[%clk
0:01:08.6]} 24. Nf3 {[%clk 0:01:14.8]} 24... Rh5 {[%clk 0:01:04.3]} 25. b5
{[%clk 0:01:08.7]} 25... Na5 {[%clk 0:01:00.8]} 26. Kg2 {[%clk 0:01:02.5]} 26...
g4 {[%clk 0:00:58.7]} 27. Nd2 {[%clk 0:01:01.1]} 27... Rgh8 {[%clk 0:00:28]} 28.
Rh1 {[%clk 0:00:53.4]} 28... Rh3 {[%clk 0:00:27.7]} 29. f3 {[%clk 0:00:46.6]}
29... Rxh1 {[%clk 0:00:20.4]} 30. Rxh1 {[%clk 0:00:43.5]} 30... Rxh1 {[%clk
0:00:21.3]} 31. Kxh1 {[%clk 0:00:43.6]} 31... gxf3 {[%clk 0:00:22.2]} 32. Bg5
{[%clk 0:00:42.3]} 32... Kf7 {[%clk 0:00:21.3]} 33. Kg1 {[%clk 0:00:35.5]} 33...
Ng4 {[%clk 0:00:19.1]} 34. Bd8 {[%clk 0:00:34.1]} 34... f2+ {[%clk 0:00:15.6]}
35. Kg2 {[%clk 0:00:30.5]} 35... Ne3+ {[%clk 0:00:14.5]} 36. Kxf2 {[%clk
0:00:30.2]} 36... Nec4 {[%clk 0:00:15.4]} 37. Nxc4 {[%clk 0:00:29.3]} 37... Nxc4
{[%clk 0:00:16.3]} 38. Bxc7 {[%clk 0:00:30]} 38... Ke8 {[%clk 0:00:14.7]} 39.
Ke2 {[%clk 0:00:22.7]} 39... Kd7 {[%clk 0:00:12.7]} 40. f6 {[%clk 0:00:20.1]}
40... Ke6 {[%clk 0:00:10]} 41. Kd3 {[%clk 0:00:20.4]} 41... Nb6 {[%clk
0:00:09.9]} 42. Bb8 {[%clk 0:00:07.7]} 42... a6 {[%clk 0:00:09.6]} 43. bxa6
{[%clk 0:00:07.7]} 43... bxa6 {[%clk 0:00:10.5]} 44. a3 {[%clk 0:00:07.6]} 44...
Kxf6 {[%clk 0:00:10.6]} 45. Bxd6 {[%clk 0:00:07.1]} 45... Ke6 {[%clk 0:00:10.9]}
46. Bc7 {[%clk 0:00:06.3]} 46... Nd7 {[%clk 0:00:11.2]} 47. Ba5 {[%clk
0:00:06.5]} 47... Nc5+ {[%clk 0:00:11.3]} 48. Ke3 {[%clk 0:00:07]} 48... Kd7
{[%clk 0:00:10.3]} 49. Bb4 {[%clk 0:00:07.4]} 49... Nb7 {[%clk 0:00:10]} 50. c4
{[%clk 0:00:07.1]} 50... a5 {[%clk 0:00:10]} 51. Bc3 {[%clk 0:00:06.5]} 51...
Kd6 {[%clk 0:00:10.5]} 52. Bd2 {[%clk 0:00:04.5]} 52... Kc5 {[%clk 0:00:10]} 53.
Kd3 {[%clk 0:00:04.5]} 53... a4 {[%clk 0:00:08.7]} 54. Be3+ {[%clk 0:00:05.4]}
54... Kc6 {[%clk 0:00:08.7]} 55. Kc3 {[%clk 0:00:05.2]} 55... Nd6 {[%clk
0:00:06.9]} 56. Kb4 {[%clk 0:00:05.5]} 56... Nxe4 {[%clk 0:00:07.3]} 57. Kxa4
{[%clk 0:00:05.9]} 57... Nf6 {[%clk 0:00:07.7]} 58. Kb4 {[%clk 0:00:05.6]} 58...
e4 {[%clk 0:00:08.2]} 59. a4 {[%clk 0:00:05.4]} 59... Nd7 {[%clk 0:00:08.7]} 60.
a5 {[%clk 0:00:05.4]} 60... Ne5 {[%clk 0:00:09.1]} 61. a6 {[%clk 0:00:05.6]}
61... Nd3+ {[%clk 0:00:08.9]} 62. Kc3 {[%clk 0:00:05.7]} 62... Ne5 {[%clk
0:00:08.4]} 63. Kd4 {[%clk 0:00:04.6]} 63... Nd7 {[%clk 0:00:08.5]} 64. Kxe4
{[%clk 0:00:04.6]} 64... Nf6+ {[%clk 0:00:06.5]} 65. Ke5 {[%clk 0:00:03.7]}
65... Nd7+ {[%clk 0:00:07.4]} 66. Ke6 {[%clk 0:00:04.6]} 66... Nf8+ {[%clk
0:00:06.8]} 67. Ke7 {[%clk 0:00:04.3]} 67... Nd7 {[%clk 0:00:07.7]} 68. Kd8
{[%clk 0:00:04.6]} 68... Ne5 {[%clk 0:00:08]} 69. a7 {[%clk 0:00:05.3]} 69...
Kb7 {[%clk 0:00:07.8]} 70. c5 {[%clk 0:00:03.5]} 70... Nc6+ {[%clk 0:00:08.4]}
71. Kd7 {[%clk 0:00:03.2]} 71... Nxa7 {[%clk 0:00:08.5]} 72. Bf4 {[%clk
0:00:03.3]} 72... Nc6 {[%clk 0:00:09.4]} 73. Bd6 {[%clk 0:00:03.9]} 73... Na7
{[%clk 0:00:08.8]} 74. Ke6 {[%clk 0:00:04.8]} 74... Nc6 {[%clk 0:00:09.4]} 75.
Kd5 {[%clk 0:00:05.6]} 75... Na7 {[%clk 0:00:09.8]} 76. Be5 {[%clk 0:00:06.2]}
76... Nc6 {[%clk 0:00:10.7]} 77. Bf4 {[%clk 0:00:05.8]} 77... Na7 {[%clk
0:00:10.7]} 78. Bc1 {[%clk 0:00:06.3]} 78... Nc6 {[%clk 0:00:11.6]} 79. Ba3
{[%clk 0:00:06.5]} 79... Na7 {[%clk 0:00:11.7]} 80. Bb4 {[%clk 0:00:07.1]} 80...
Nc6 {[%clk 0:00:12.6]} 81. Bc3 {[%clk 0:00:07.4]} 81... Na7 {[%clk 0:00:12.8]}
82. Ba5 {[%clk 0:00:07.4]} 82... Nc6 {[%clk 0:00:13.7]} 83. Bb6 {[%clk
0:00:07.8]} 83... Nb8 {[%clk 0:00:13.9]} 84. Kd6 {[%clk 0:00:07.7]} 84... Nc6
{[%clk 0:00:14.8]} 85. Bc7 {[%clk 0:00:07.9]} 85... Nb4 {[%clk 0:00:14.9]} 86.
Ba5 {[%clk 0:00:07.2]} 86... Nc6 {[%clk 0:00:15.8]} 87. Bb6 {[%clk 0:00:08.1]}
87... Nb4 {[%clk 0:00:15.8]} 88. Bc7 {[%clk 0:00:07.5]} 88... Nc6 {[%clk
0:00:16.2]} 89. Bd8 {[%clk 0:00:07.8]} 89... Nxd8 {[%clk 0:00:16.1]} 90. Kd7
{[%clk 0:00:08.7]} 90... Nc6 {[%clk 0:00:17]} 91. Kd6 {[%clk 0:00:09.2]} 91...
Nb4 {[%clk 0:00:17.3]} 92. Kd7 {[%clk 0:00:10.1]} 92... Nc6 {[%clk 0:00:18.2]}
93. Kd6 {[%clk 0:00:11]} 93... Na5 {[%clk 0:00:18.8]} 94. Kd5 {[%clk 0:00:10.5]}
94... Nc6 {[%clk 0:00:18.7]} 95. Kc4 {[%clk 0:00:09.3]} 95... Kc7 {[%clk
0:00:18.8]} 96. Kb5 {[%clk 0:00:09]} 96... Nb8 {[%clk 0:00:19.7]} 97. Kc4 {[%clk
0:00:09.6]} 97... Nc6 {[%clk 0:00:20.6]} 98. Kd5 {[%clk 0:00:10.5]} 98... Ne7+
{[%clk 0:00:20.9]} 99. Ke6 {[%clk 0:00:11.1]} 99... Nc6 {[%clk 0:00:21.8]} 100.
Kd5 {[%clk 0:00:11.5]} 100... Nb4+ {[%clk 0:00:22.2]} 101. Kc4 {[%clk
0:00:12.4]} 101... Na6 {[%clk 0:00:22.6]} 102. Kb5 {[%clk 0:00:13.3]} 102... Nb8
{[%clk 0:00:23]} 103. c6 {[%clk 0:00:13.5]} 103... Nxc6 {[%clk 0:00:23.1]}
1/2-1/2

[Event "*** Titled Tuesday Blitz"]
[Site "Chess.com"]
[Date "2020.05.12"]
[Round "5"]
[White "PhileKhoob"]
[Black "Maybe00"]
[Result "1-0"]
[WhiteElo "2455"]
[BlackElo "2810"]
[TimeControl "180+1"]
[EndTime "10:58:02 PDT"]
[Termination "PhileKhoob won by resignation"]

1. e4 {[%clk 0:03:00.9]} 1... e5 {[%clk 0:03:00]} 2. Nf3 {[%clk 0:03:00.1]} 2...
Nc6 {[%clk 0:03:00.3]} 3. d4 {[%clk 0:02:59]} 3... exd4 {[%clk 0:03:00.4]} 4.
Nxd4 {[%clk 0:02:59.9]} 4... Nf6 {[%clk 0:03:00.9]} 5. Nxc6 {[%clk 0:02:59.9]}
5... bxc6 {[%clk 0:03:01.8]} 6. e5 {[%clk 0:03:00.4]} 6... Qe7 {[%clk
0:03:02.3]} 7. Qe2 {[%clk 0:03:01]} 7... Nd5 {[%clk 0:03:02.8]} 8. c4 {[%clk
0:03:01.5]} 8... Ba6 {[%clk 0:03:03.2]} 9. b3 {[%clk 0:03:02]} 9... g6 {[%clk
0:03:03.1]} 10. Bb2 {[%clk 0:03:02.5]} 10... Bg7 {[%clk 0:03:03.2]} 11. Nd2
{[%clk 0:03:03.1]} 11... O-O {[%clk 0:03:00.4]} 12. O-O-O {[%clk 0:03:02.3]}
12... d6 {[%clk 0:02:27.2]} 13. Qe4 {[%clk 0:02:25.5]} 13... Nb6 {[%clk
0:02:15.8]} 14. f4 {[%clk 0:01:44]} 14... Rfe8 {[%clk 0:02:04.2]} 15. g4 {[%clk
0:01:14.9]} 15... d5 {[%clk 0:02:00]} 16. Qc2 {[%clk 0:01:07.7]} 16... dxc4
{[%clk 0:01:58]} 17. Nxc4 {[%clk 0:01:08.6]} 17... Nxc4 {[%clk 0:01:58.2]} 18.
Bxc4 {[%clk 0:01:09.5]} 18... Bxc4 {[%clk 0:01:56.6]} 19. Qxc4 {[%clk
0:01:10.4]} 19... g5 {[%clk 0:01:53.9]} 20. Rhe1 {[%clk 0:00:54.6]} 20... gxf4
{[%clk 0:01:50.7]} 21. Qxf4 {[%clk 0:00:55.5]} 21... a5 {[%clk 0:01:48.5]} 22.
Kb1 {[%clk 0:00:46.4]} 22... a4 {[%clk 0:01:48.5]} 23. Rd3 {[%clk 0:00:44.1]}
23... axb3 {[%clk 0:01:48.1]} 24. axb3 {[%clk 0:00:44.3]} 24... Qe6 {[%clk
0:01:44.7]} 25. Qf5 {[%clk 0:00:42.7]} 25... Qe7 {[%clk 0:01:35.6]} 26. Rh3
{[%clk 0:00:39.9]} 26... h6 {[%clk 0:01:33.1]} 27. g5 {[%clk 0:00:30.1]} 27...
Qxg5 {[%clk 0:01:22.7]} 28. Qxg5 {[%clk 0:00:30.3]} 28... hxg5 {[%clk
0:01:23.6]} 29. Rg3 {[%clk 0:00:31.1]} 29... f6 {[%clk 0:01:22.2]} 30. Reg1
{[%clk 0:00:26.9]} 30... Kf7 {[%clk 0:01:08.4]} 31. exf6 {[%clk 0:00:26.2]}
31... Bxf6 {[%clk 0:01:08.9]} 32. Rf1 {[%clk 0:00:26.5]} 32... Re6 {[%clk
0:01:03.2]} 33. Rgf3 {[%clk 0:00:27]} 33... Rb8 {[%clk 0:00:54]} 34. Rxf6+
{[%clk 0:00:27.2]} 34... Rxf6 {[%clk 0:00:54.6]} 35. Rxf6+ {[%clk 0:00:27.9]}
35... Ke7 {[%clk 0:00:55.5]} 36. Rf3 {[%clk 0:00:24.3]} 36... Ke6 {[%clk
0:00:53.3]} 37. Kc2 {[%clk 0:00:23]} 37... Rb4 {[%clk 0:00:52.8]} 38. Rf6+
{[%clk 0:00:20.4]} 38... Kd7 {[%clk 0:00:50.1]} 39. Rh6 {[%clk 0:00:20.4]} 39...
Re4 {[%clk 0:00:49.5]} 40. Rh5 {[%clk 0:00:20]} 40... Re2+ {[%clk 0:00:49.3]}
41. Kc1 {[%clk 0:00:19.3]} 41... Rg2 {[%clk 0:00:49.2]} 42. Bf6 {[%clk
0:00:18.2]} 42... g4 {[%clk 0:00:49.1]} 43. Be5 {[%clk 0:00:17.9]} 43... Re2
{[%clk 0:00:45.8]} 44. Bg3 {[%clk 0:00:18]} 44... Re3 {[%clk 0:00:44.6]} 45. Kc2
{[%clk 0:00:17.5]} 45... Re2+ {[%clk 0:00:44.9]} 46. Kc3 {[%clk 0:00:17.9]}
46... Ke6 {[%clk 0:00:43.8]} 47. Rh7 {[%clk 0:00:17]} 47... Re3+ {[%clk
0:00:43.2]} 48. Kb2 {[%clk 0:00:16.9]} 48... Re2+ {[%clk 0:00:40.8]} 49. Ka3
{[%clk 0:00:16.5]} 49... Kd5 {[%clk 0:00:38.3]} 50. Rxc7 {[%clk 0:00:16.7]}
50... Re4 {[%clk 0:00:38.6]} 51. Rd7+ {[%clk 0:00:15.8]} 51... Kc5 {[%clk
0:00:38.3]} 52. Rd2 {[%clk 0:00:15.3]} 52... Kb5 {[%clk 0:00:38.3]} 53. Kb2
{[%clk 0:00:14.5]} 53... c5 {[%clk 0:00:38.1]} 54. Kc3 {[%clk 0:00:14.8]} 54...
Re3+ {[%clk 0:00:38.3]} 55. Rd3 {[%clk 0:00:15.1]} 55... Re4 {[%clk 0:00:38.8]}
56. Bd6 {[%clk 0:00:15]} 56... Kc6 {[%clk 0:00:38.4]} 57. Bg3 {[%clk 0:00:15.7]}
57... Kb5 {[%clk 0:00:38.7]} 58. Rd2 {[%clk 0:00:15.8]} 58... Re3+ {[%clk
0:00:38.7]} 59. Kc2 {[%clk 0:00:16.3]} 59... Kb4 {[%clk 0:00:36.9]} 60. Rf2
{[%clk 0:00:15.9]} 60... Rc3+ {[%clk 0:00:37.1]} 61. Kd2 {[%clk 0:00:15.4]}
61... Kxb3 {[%clk 0:00:26.8]} 62. Rf4 {[%clk 0:00:14.8]} 62... Rc2+ {[%clk
0:00:27.3]} 63. Kd3 {[%clk 0:00:14.9]} 63... c4+ {[%clk 0:00:27.8]} 64. Kd4
{[%clk 0:00:15.3]} 64... Rd2+ {[%clk 0:00:27.6]} 65. Ke3 {[%clk 0:00:15.1]}
65... c3 {[%clk 0:00:23.4]} 66. Rxg4 {[%clk 0:00:15.3]} 66... Rd1 {[%clk
0:00:20.6]} 67. Bf4 {[%clk 0:00:13.7]} 67... c2 {[%clk 0:00:18.8]} 68. Ke2
{[%clk 0:00:12.5]} 68... Rd4 {[%clk 0:00:16.9]} 69. Rg3+ {[%clk 0:00:10]} 69...
Kb2 {[%clk 0:00:17.4]} 70. Bh6 {[%clk 0:00:10.2]} 70... Rd6 {[%clk 0:00:16.8]}
71. Be3 {[%clk 0:00:09.2]} 71... Re6 {[%clk 0:00:16.9]} 72. Rg1 {[%clk
0:00:09.5]} 72... Re4 {[%clk 0:00:15.9]} 73. h3 {[%clk 0:00:09.5]} 73... Rh4
{[%clk 0:00:16.1]} 74. Rh1 {[%clk 0:00:09.8]} 74... Kc3 {[%clk 0:00:15.6]} 75.
Kf3 {[%clk 0:00:10]} 75... Kd3 {[%clk 0:00:15.1]} 76. Bg5 {[%clk 0:00:10.2]}
76... Rh7 {[%clk 0:00:12.8]} 77. h4 {[%clk 0:00:10.5]} 77... Kd4 {[%clk
0:00:11.1]} 78. Kg4 {[%clk 0:00:10.6]} 78... Ke4 {[%clk 0:00:11.1]} 79. Re1+
{[%clk 0:00:10.5]} 79... Kd5 {[%clk 0:00:09.3]} 80. h5 {[%clk 0:00:11.3]} 80...
Rb7 {[%clk 0:00:08.4]} 81. h6 {[%clk 0:00:11.2]} 81... Rb1 {[%clk 0:00:07.7]}
82. Rc1 {[%clk 0:00:11.2]} 82... Rb4+ {[%clk 0:00:06.9]} 83. Kh5 {[%clk
0:00:11.1]} 83... Rc4 {[%clk 0:00:07.3]} 84. h7 {[%clk 0:00:10.6]} 84... Rc8
{[%clk 0:00:06.2]} 85. Bf6 {[%clk 0:00:10.8]} 85... Ke4 {[%clk 0:00:06.4]} 86.
h8=Q {[%clk 0:00:10.7]} 86... Rxh8+ {[%clk 0:00:07]} 87. Bxh8 {[%clk 0:00:11.2]}
87... Kd3 {[%clk 0:00:07.9]} 88. Bb2 {[%clk 0:00:11.8]} 88... Kc4 {[%clk
0:00:07.6]} 89. Kg4 {[%clk 0:00:12.1]} 89... Kb3 {[%clk 0:00:08.3]} 90. Bf6
{[%clk 0:00:12.1]} 90... Kc4 {[%clk 0:00:07.1]} 91. Bg5 {[%clk 0:00:13]} 91...
Kd3 {[%clk 0:00:08]} 92. Kf3 {[%clk 0:00:13.2]} 92... Kc3 {[%clk 0:00:08.5]} 93.
Ke2 {[%clk 0:00:13.4]} 1-0

[Event "*** Titled Tuesday Blitz"]
[Site "Chess.com"]
[Date "2020.05.12"]
[Round "5"]
[White "LastHeroJr"]
[Black "GMaka"]
[Result "0-1"]
[WhiteElo "2493"]
[BlackElo "2370"]
[TimeControl "180+1"]
[EndTime "10:58:20 PDT"]
[Termination "GMaka won by resignation"]

1. e4 {[%clk 0:03:00.9]} 1... c6 {[%clk 0:02:57.6]} 2. d4 {[%clk 0:02:59.3]}
2... d5 {[%clk 0:02:57.5]} 3. e5 {[%clk 0:02:59.3]} 3... Bf5 {[%clk 0:02:55.1]}
4. Nf3 {[%clk 0:02:59.3]} 4... e6 {[%clk 0:02:47.9]} 5. Be2 {[%clk 0:02:59.2]}
5... Ne7 {[%clk 0:02:46]} 6. O-O {[%clk 0:02:58.2]} 6... Ng6 {[%clk 0:02:45.1]}
7. Nbd2 {[%clk 0:02:48]} 7... Nf4 {[%clk 0:02:40.4]} 8. Nb3 {[%clk 0:02:39.9]}
8... Nxe2+ {[%clk 0:02:38.6]} 9. Qxe2 {[%clk 0:02:40.8]} 9... Be7 {[%clk
0:02:30.7]} 10. c3 {[%clk 0:02:32.9]} 10... O-O {[%clk 0:02:28]} 11. Be3 {[%clk
0:02:32.3]} 11... a5 {[%clk 0:02:24.7]} 12. a4 {[%clk 0:02:28.9]} 12... Nd7
{[%clk 0:02:11.7]} 13. Nbd2 {[%clk 0:02:18.7]} 13... h6 {[%clk 0:02:06.3]} 14.
h3 {[%clk 0:02:17.6]} 14... Bh7 {[%clk 0:01:58.7]} 15. Rfe1 {[%clk 0:02:14.1]}
15... Qb6 {[%clk 0:01:55.4]} 16. Nf1 {[%clk 0:02:12.1]} 16... Qa6 {[%clk
0:01:55.3]} 17. Qd2 {[%clk 0:02:09]} 17... b5 {[%clk 0:01:39.2]} 18. Ng3 {[%clk
0:02:03.1]} 18... Bg6 {[%clk 0:01:16.1]} 19. Nh2 {[%clk 0:01:44.2]} 19... b4
{[%clk 0:01:16]} 20. Ng4 {[%clk 0:01:37.9]} 20... bxc3 {[%clk 0:01:16.2]} 21.
bxc3 {[%clk 0:01:38.8]} 21... Qd3 {[%clk 0:01:15.9]} 22. Qc1 {[%clk 0:01:06.1]}
22... Qc2 {[%clk 0:01:14.4]} 23. Bxh6 {[%clk 0:01:03.1]} 23... Qxc1 {[%clk
0:00:52.4]} 24. Bxc1 {[%clk 0:01:04]} 24... Rfb8 {[%clk 0:00:52]} 25. Ne3 {[%clk
0:01:01.2]} 25... Rb3 {[%clk 0:00:50.9]} 26. Bd2 {[%clk 0:00:54.8]} 26... Rab8
{[%clk 0:00:41.3]} 27. f4 {[%clk 0:00:54.3]} 27... Bd3 {[%clk 0:00:41.1]} 28. f5
{[%clk 0:00:53.8]} 28... Bh4 {[%clk 0:00:35.6]} 29. Kh2 {[%clk 0:00:50.2]} 29...
exf5 {[%clk 0:00:29.3]} 30. Nexf5 {[%clk 0:00:35.4]} 30... Bxf5 {[%clk
0:00:28.1]} 31. Nxf5 {[%clk 0:00:36.3]} 31... Bxe1 {[%clk 0:00:28.4]} 32. Rxe1
{[%clk 0:00:37.2]} 32... R8b6 {[%clk 0:00:18.6]} 33. e6 {[%clk 0:00:35.4]} 33...
fxe6 {[%clk 0:00:19.5]} 34. Rxe6 {[%clk 0:00:35.8]} 34... Nf6 {[%clk 0:00:16.2]}
35. Bf4 {[%clk 0:00:33.9]} 35... Rb7 {[%clk 0:00:14.3]} 36. Be5 {[%clk
0:00:33.7]} 36... Kf7 {[%clk 0:00:08.3]} 37. Rd6 {[%clk 0:00:28.9]} 37... Ne4
{[%clk 0:00:08.8]} 38. Rd8 {[%clk 0:00:28.9]} 38... g6 {[%clk 0:00:09.7]} 39.
Nh6+ {[%clk 0:00:28.3]} 39... Ke6 {[%clk 0:00:10.2]} 40. Rg8 {[%clk 0:00:25.2]}
40... g5 {[%clk 0:00:05.3]} 41. Rg6+ {[%clk 0:00:22.9]} 41... Kd7 {[%clk
0:00:05.7]} 42. Nf5 {[%clk 0:00:20.5]} 42... Rb2 {[%clk 0:00:03.1]} 43. Nh6
{[%clk 0:00:13.2]} 43... R7b3 {[%clk 0:00:02.4]} 44. Rg7+ {[%clk 0:00:12.8]}
44... Kc8 {[%clk 0:00:02.9]} 45. Nf5 {[%clk 0:00:12.8]} 45... Kd8 {[%clk
0:00:03.8]} 46. Rg8+ {[%clk 0:00:12.7]} 46... Kd7 {[%clk 0:00:04.3]} 47. Rg7+
{[%clk 0:00:13.1]} 47... Kd8 {[%clk 0:00:03.3]} 48. Ne7 {[%clk 0:00:11.6]} 48...
Rxc3 {[%clk 0:00:01.5]} 49. Nf5 {[%clk 0:00:11.1]} 49... Rcc2 {[%clk 0:00:02.4]}
50. Rg8+ {[%clk 0:00:10.1]} 50... Kd7 {[%clk 0:00:03.3]} 51. h4 {[%clk
0:00:06.7]} 51... Rxg2+ {[%clk 0:00:02.8]} 52. Kh3 {[%clk 0:00:07.2]} 52... g4+
{[%clk 0:00:03.7]} 53. Rxg4 {[%clk 0:00:06.7]} 53... Rxg4 {[%clk 0:00:04.6]} 54.
Kxg4 {[%clk 0:00:07.6]} 54... Nf2+ {[%clk 0:00:04.5]} 55. Kg5 {[%clk 0:00:07.7]}
55... Ne4+ {[%clk 0:00:05.4]} 56. Kg6 {[%clk 0:00:07.4]} 56... Rg2+ {[%clk
0:00:06]} 57. Kf7 {[%clk 0:00:07.5]} 57... c5 {[%clk 0:00:06.6]} 58. dxc5 {[%clk
0:00:07.1]} 58... Nxc5 {[%clk 0:00:07.5]} 59. h5 {[%clk 0:00:07.5]} 59... Rg5
{[%clk 0:00:07]} 60. Kf6 {[%clk 0:00:01.5]} 60... Rxh5 {[%clk 0:00:07]} 61. Nd4
{[%clk 0:00:02.4]} 61... Rh6+ {[%clk 0:00:06.7]} 62. Kg5 {[%clk 0:00:02.2]}
62... Rh5+ {[%clk 0:00:07.6]} 63. Kxh5 {[%clk 0:00:02]} 63... Nxa4 {[%clk
0:00:08.5]} 64. Kg5 {[%clk 0:00:01.5]} 64... Nc5 {[%clk 0:00:09.1]} 65. Kf4
{[%clk 0:00:02.4]} 65... a4 {[%clk 0:00:09.3]} 66. Ke3 {[%clk 0:00:02.8]} 66...
Nb3 {[%clk 0:00:07.8]} 67. Nc2 {[%clk 0:00:03]} 67... Kc6 {[%clk 0:00:07.6]} 68.
Bb2 {[%clk 0:00:03.3]} 68... Kb5 {[%clk 0:00:07.8]} 69. Ba3 {[%clk 0:00:04.2]}
69... Kc4 {[%clk 0:00:07.7]} 70. Ke2 {[%clk 0:00:04.4]} 70... d4 {[%clk
0:00:07.9]} 71. Ne1 {[%clk 0:00:04.1]} 71... Kc3 {[%clk 0:00:08.2]} 72. Nd3
{[%clk 0:00:04.1]} 72... Kc2 {[%clk 0:00:07.7]} 73. Bf8 {[%clk 0:00:03.4]} 73...
Na5 {[%clk 0:00:04.6]} 74. Nb4+ {[%clk 0:00:03]} 74... Kb3 {[%clk 0:00:04.1]}
75. Nd3 {[%clk 0:00:02.8]} 75... Kc2 {[%clk 0:00:03.9]} 76. Ne1+ {[%clk
0:00:01.9]} 76... Kb3 {[%clk 0:00:03.6]} 77. Nd3 {[%clk 0:00:02.8]} 77... a3
{[%clk 0:00:03.4]} 78. Nc1+ {[%clk 0:00:02.8]} 78... Kc2 {[%clk 0:00:03.5]} 79.
Bxa3 {[%clk 0:00:02.2]} 79... Nb3 {[%clk 0:00:03.1]} 80. Bc5 {[%clk 0:00:02.7]}
80... Nxc1+ {[%clk 0:00:03]} 81. Kf3 {[%clk 0:00:02.4]} 81... d3 {[%clk
0:00:03.6]} 82. Be3 {[%clk 0:00:03.3]} 82... Nb3 {[%clk 0:00:03.6]} 83. Ke4
{[%clk 0:00:03.2]} 83... Na5 {[%clk 0:00:03.9]} 84. Kd5 {[%clk 0:00:03.4]} 84...
Nb3 {[%clk 0:00:04]} 85. Kc4 {[%clk 0:00:03.4]} 85... Na1 {[%clk 0:00:04]} 86.
Kb4 {[%clk 0:00:03.4]} 86... Nb3 {[%clk 0:00:04.9]} 87. Kc4 {[%clk 0:00:03.6]}
87... Na5+ {[%clk 0:00:04.9]} 88. Kb4 {[%clk 0:00:03.8]} 88... Nb7 {[%clk
0:00:05.3]} 89. Kc4 {[%clk 0:00:03.9]} 89... Nd6+ {[%clk 0:00:05.6]} 90. Kd5
{[%clk 0:00:04.8]} 90... Nf5 {[%clk 0:00:06.1]} 91. Bg5 {[%clk 0:00:05.3]} 91...
Ng3 {[%clk 0:00:06.4]} 92. Kd4 {[%clk 0:00:05.2]} 92... Ne2+ {[%clk 0:00:06.4]}
93. Kd5 {[%clk 0:00:05.1]} 93... Nc3+ {[%clk 0:00:07.3]} 94. Kd4 {[%clk
0:00:04.8]} 94... Nb1 {[%clk 0:00:06.7]} 95. Kc4 {[%clk 0:00:04.3]} 95... Nd2+
{[%clk 0:00:06.9]} 96. Kd4 {[%clk 0:00:03.9]} 96... Nf3+ {[%clk 0:00:07]} 0-1